Cogmind - Beta 13 @@@ ROGUE MODE // 2024.07.12 @ 18:25:03 Player: H3-RMN Result: Destroyed by G-73 Enforcer with Phase Gun Performance ------------- Evolutions (9) 4500 Regions Visited (29) 5800 Robots Destroyed (243) 1215 Value Destroyed (6250) 6250 Prototype IDs (123) 2460 Alien Tech Used (9) 1800 Bonus (16434) 16434 TOTAL SCORE: 38459 Bonus ------- High Alert Combat Kills 308 Follower Combat Kills 800 Met Imprinter 300 Met Warlord at Base 500 MAIN.C Attacked Warlord 500 Met Warlord at Research 2000 Destroyed MAIN.C Guards 500 Met MAIN.C 5000 Destroyed MAIN.C Shell 5000 Met Warlord at Command 2000 Friendly Fire -474 Cogmind --------- Core Integrity 0/1600 Matter 64/300 Energy 40/100 System Corruption 15% Temperature Cool (0) Movement Core (100) Ox1 Location -1/Command Parts ------- > --- POWER (2) -------- (None) > --- PROPULSION (6) --- (None) > --- UTILITY (14) ----- Experimental Coolant Injector > --- WEAPON (3) ------- Vibroblade > --- INVENTORY (5) ---- Micro Antimatter Reactor Experimental Matter Compressor (0) Heavy Beamcaster Z-bomb Delivery System Z-bomb Delivery System Peak State ------------ > --- POWER ------------ Improved Fusion Compressor Light Quantum Reactor > --- PROPULSION ------- Improved Antigrav System Antigrav Array Experimental Gyrokinetic Inverter Combat Linear Gravjet Combat Linear Gravjet > --- UTILITY ---------- Experimental Power Amplifier Experimental Cooling System High-capacity Storage Unit Advanced Weight Redist. System Zionite Metafield Generator Structural Scanner Advanced Sensor Array Advanced Signal Interpreter Advanced Transmission Jammer Experimental Reaction Control System Centrium Medium Armor Plating Improved Hacking Suite Improved Hacking Suite Improved Hacking Suite > --- WEAPON ----------- Z-bomb Delivery System Improved Plasma Cutter Vibroblade > --- INVENTORY -------- Improved Fusion Compressor Improved Quantum Reactor Improved Antigrav System Improved Gyrokinetic Inverter Cooled Antigrav System Advanced Matter Compressor Experimental Matter Compressor Advanced Sensor Array Centrium Medium Armor Plating SHELL Armor Authchip [Propulsion] Subatomic Replicator Vortex Driver Vortex Driver Enhanced Nova Cannon Helical Railgun Vibroblade [Rating: 192] Favorites ----------- Power Heavy Ion Engine Engine Heavy Ion Engine Power Core Micro Fission Core Reactor Improved Quantum Reactor Propulsion Cooled Cesium-ion Thruster Treads Armored Treads Leg Carbon-fiber Leg Wheel Armored Wheel Hover Unit Zionite Glidesys II Flight Unit Cooled Cesium-ion Thruster Utility Large Storage Unit Device Advanced Weight Redist. System Storage Large Storage Unit Processor Advanced Signal Interpreter Hackware Improved Hacking Suite Protection Makeshift Light Armor Plating Artifact Phase Redirector Weapon Makeshift Sword Energy Gun Improved Medium Laser Energy Cannon YOLO Cannon Ballistic Gun Assault Rifle Ballistic Cannon Heavy Assault Cannon Launcher Rocket Launcher Special Weapon Improved Plasma Cutter Impact Weapon Mace Slashing Weapon Makeshift Sword Piercing Weapon Plasma Lance Special Melee Weapon Improved Datajack Build | -11 -10 -10 -9 -9 -9 -8 -8 -7 -7 -7 -7 -7 -6 -6 -6 -6 -5 -4 -4 -4 -4 -3 -3 -3 -3 -2 -2 -1 -1 ------- Run | Yrd Mat Min Mat Min Exi Min Mat Fac Low Low Zio Dee Pro Fac Was Fac Fac Fac Upp Upp War Pro Res Qua Sec Res Tes Acc Com Slots Evolved 18 | . . . 2 . . . 2 2 . . . . . 2 . . 2 2 . . . . 2 . . 2 . 2 . Power 1 | . . . . . . . . 1 . . . . . . . . . . . . . . . . . . . . . Propulsion 4 | . . . 1 . . . 1 1 . . . . . . . . 1 . . . . . . . . . . . . Utility 12 | . . . 1 . . . 1 . . . . . . 2 . . 1 2 . . . . 2 . . 2 . 1 . Weapon 1 | . . . . . . . . . . . . . . . . . . . . . . . . . . . . 1 . Parts Attached 667 | 7 11 4 29 . 2 4 51 56 27 9 34 33 2 43 12 34 25 55 . 2 36 3 7 27 30 37 26 4 57 Power 54 | 1 1 1 4 . . . 2 3 1 1 . 1 . 5 . 1 4 7 . . 3 . . . 3 5 1 . 10 Engine 20 | 1 1 1 4 . . . 2 2 1 1 . . . . . 1 2 2 . . . . . . 1 . . . 1 Core 17 | . . . . . . . . 1 . . . . . 4 . . 2 3 . . 1 . . . 1 2 . . 3 Reactor 17 | . . . . . . . . . . . . 1 . 1 . . . 2 . . 2 . . . 1 3 1 . 6 Propulsion 144 | 2 3 1 9 . 1 . 18 11 3 2 7 6 . 7 10 11 8 4 . . 6 . 3 3 4 6 3 . 16 Treads 29 | 1 1 . 7 . 1 . 12 . 3 . 2 . . . . . . 1 . . . . . . . . . . 1 Leg 10 | . . . . . . . 1 1 . 1 3 . . . 1 1 . . . . 2 . . . . . . . . Wheel 11 | 1 2 1 2 . . . 1 2 . 1 1 . . . . . . . . . . . . . . . . . . Hover 46 | . . . . . . . . . . . . 6 . 5 7 3 . . . . 1 . . . . 6 3 . 15 Flight 48 | . . . . . . . 4 8 . . 1 . . 2 2 7 8 3 . . 3 . 3 3 4 . . . . Utility 262 | 2 4 1 9 . . . 14 28 10 1 10 11 1 18 . 17 8 41 . 2 14 1 4 10 12 18 11 1 14 Device 158 | 1 2 . 3 . . . 7 22 7 . 4 6 1 11 . 10 3 28 . 1 10 1 3 5 7 12 6 1 7 Storage 27 | 1 2 . 1 . . . 2 2 2 . 4 . . 1 . . 1 3 . . 1 . . 2 1 1 . . 3 Processor 15 | . . . 1 . . . 2 3 1 . 1 . . 2 . 1 . 1 . . 1 . . . . . . . 2 Hackware 17 | . . . . . . . 2 . . . . . . 3 . 3 3 3 . . . . 1 1 . 1 . . . Protection 42 | . . 1 4 . . . 1 1 . 1 1 5 . 1 . 3 1 6 . 1 2 . . . 4 3 5 . 2 Artifact 3 | . . . . . . . . . . . . . . . . . . . . . . . . 2 . 1 . . . Weapon 207 | 2 3 1 7 . 1 4 17 14 13 5 17 15 1 13 2 5 5 3 . . 13 2 . 14 11 8 11 3 17 Energy Gun 31 | . . . 2 . . 1 4 2 3 . 1 5 . 2 . . 1 . . . 6 . . . . . . . 4 Energy Cannon 19 | . . . . . . . . 2 2 1 2 . . . . . . . . . 1 . . 1 3 . 2 2 3 Ballistic Gun 26 | 2 2 1 5 . . 2 2 . . . . . . . . . . . . . 1 1 . 1 5 3 . . 1 Ballistic Cannon 13 | . . . . . . . 8 . 1 1 . . . . 1 . . . . . 1 . . . . . 1 . . Launcher 14 | . 1 . . . . 1 1 1 . . . 1 . 2 . 1 . . . . . . . . 1 1 . 1 3 Special Weapon 21 | . . . . . . . . . . . 4 2 . 3 . . . . . . 3 . . 4 1 . 4 . . Impact Weapon 9 | . . . . . . . . 1 3 2 2 . . . . . . . . . . . . 1 . . . . . Slashing Weapon 45 | . . . . . . . 1 6 4 1 7 5 1 5 . 1 3 1 . . . . . 1 1 . 3 . 5 Piercing Weapon 14 | . . . . . . . . . . . . 1 . . . 1 1 1 . . 1 1 . 3 . 4 1 . . Special Melee Weapon 15 | . . . . . 1 . 1 2 . . 1 1 . 1 1 2 . 1 . . . . . 3 . . . . 1 Unidentified Prototypes 59 | . . . 2 . . . 1 . . . 1 9 . 2 1 . 1 4 . . 14 . 2 6 3 6 5 1 1 Parts Lost 113 | . 3 1 9 . . . 4 9 2 5 7 3 . 5 . 7 1 5 . . . . . 1 8 . . . 43 Power 18 | . . 1 . . . . 1 2 1 1 . . . . . 1 . 1 . . . . . . 2 . . . 8 Propulsion 45 | . 2 . 3 . . . 1 4 . 3 4 3 . 5 . 3 . 1 . . . . . . 3 . . . 13 Utility 33 | . 1 . 3 . . . 1 2 1 1 2 . . . . 1 . 1 . . . . . 1 2 . . . 17 Weapon 17 | . . . 3 . . . 1 1 . . 1 . . . . 2 1 2 . . . . . . 1 . . . 5 Highest Loss Streak 23 | . 2 1 5 . . . 4 8 2 3 7 2 . 2 . 5 1 2 . . . . . 1 8 . . . 23 To Critical Strikes . | . . . . . . . . . . . . . . . . . . . . . . . . . . . . . . Average Slot Usage (%) 87 | . 96 100 99 100 87 100 86 87 73 71 74 82 100 94 92 89 89 91 89 89 90 89 84 90 83 92 94 92 85 Engine 6 | . 14 14 10 11 11 11 8 12 3 3 7 7 7 . 5 6 5 3 . . . . . . 1 . . . . Core 1 | . . . . . . . . . . . . . . 4 . . 3 5 5 5 4 5 4 4 3 3 4 4 3 Reactor 1 | . . . . . . . . . . . . 3 7 6 6 3 . . 5 5 4 5 4 4 1 2 3 4 3 Treads 11 | . 14 14 21 22 22 22 31 . 7 16 9 3 . . . . . . . . . . . . . . . . . Wheel 4 | . 14 14 10 11 11 11 4 1 15 5 6 3 . . . . . . . . . . . . . . . . . Hover 4 | . . . . . . . . . . . . 18 38 28 20 15 . . . . . . . . . 9 21 20 22 Flight 6 | . . . . . . . . 32 1 . . . . . 4 12 26 25 26 26 25 26 23 23 22 11 . . . Device 12 | . 10 8 9 11 11 11 12 7 14 8 5 4 13 11 13 9 5 10 21 21 20 21 18 22 19 31 29 32 23 Storage 8 | . 14 14 11 11 11 11 9 7 13 15 10 7 7 6 6 6 5 5 5 5 5 5 4 4 4 4 4 4 4 Processor 3 | . . . . . . . 1 2 1 . 1 3 . 5 13 13 11 10 10 10 10 10 9 9 8 4 4 4 4 Hackware 4 | . . . . . . . . 10 . . . . . 15 6 7 14 16 10 10 10 10 14 14 14 13 13 12 9 Protection 4 | . . 5 10 11 11 11 5 . . 5 7 13 8 . . 1 . 2 . . . . . . 1 2 4 4 3 Energy Gun 2 | . . . 13 22 . 10 2 . 3 . 1 1 . 1 . . . . . . 1 . . . . . . . 1 Ballistic Gun 2 | . 28 14 8 . . 10 . . . . . . . . . . . . . . . . . . . . . . . Ballistic Cannon 1 | . . . . . . . 6 . 3 1 . . . . . . . . . . . . . . . . . . . Slashing Weapon 3 | . . . . . . . . 5 4 4 7 11 10 10 6 2 3 2 5 5 3 . . . . . 2 4 5 Special Melee Weapon 1 | . . . . . 10 . 1 2 . . . . . . 6 3 5 3 . . . . . . . . . . . Naked Turns . | . . . . . . . . . . . . . . . . . . . . . . . . . . . . . . Heaviest Build 125 | 14 92 95 101 101 96 102 125 35 52 52 53 55 55 53 39 40 34 51 49 49 65 49 49 53 58 86 98 89 110 Greatest Support 97 | 16 16 16 12 12 20 12 82 32 29 48 37 78 78 78 48 60 40 49 49 49 49 49 61 61 52 87 89 89 97 Greatest Overweight (x) 13 | . 9 9 9 8 7 8 10 2 2 5 4 13 . 1 6 1 1 3 . . 4 . 1 1 1 . 1 . 3 Average Overweight (x) 1 | . 3 5 8 8 6 8 4 . 1 1 2 . . . . . . . . . . . . . . . . . . Largest Inventory Capacity 25 | 8 25 25 25 25 25 25 25 15 15 15 15 15 15 15 15 15 15 15 15 15 15 15 15 15 15 20 20 20 20 Average Capacity 18 | 7 19 25 25 25 25 25 24 15 15 15 13 15 15 15 15 15 15 15 15 15 15 15 15 15 15 16 20 20 19 Most Carried 25 | 7 19 25 25 25 25 25 25 15 15 15 15 15 15 15 15 15 15 15 15 15 15 15 15 15 15 20 20 20 20 Average Carried 18 | 3 14 23 24 25 24 24 24 14 14 14 13 14 14 14 14 13 14 14 15 14 14 14 14 14 13 15 19 19 18 Final Capacity 25 | 8 25 25 25 25 25 25 15 15 15 15 15 15 15 15 15 15 15 15 15 15 15 15 15 15 15 20 20 20 5 Final Carried 25 | 7 16 25 25 25 25 25 15 14 15 14 15 14 15 15 15 15 15 15 15 15 15 15 15 14 15 20 20 20 5 Class Distribution -------------------- 29% | Mutant 15% | Trapper-Mutant 9% | Hacker-Ninja 9% | Scavenger-Mutant 6% | Scavenger-Ninja 6% | Hacker-Scout 4% | Derelict-Mutant 3% | Hacker-Mutant Dominant Class ---------------- Mutant | -10/Materials Mutant | -10/Mines Mutant | -9/Materials Mutant | -9/Mines Mutant | -9/Exiles Mutant | -8/Mines Mutant | -8/Materials Trapper-Sprinter | -7/Factory Trapper-Mutant | -7/Lower Caves Trapper-Mutant | -7/Lower Caves Trapper-Mutant | -7/Zion Derelict-Mutant | -7/Deep Caves Derelict-Mutant | -6/Proximity Caves Scavenger-Sprinter | -6/Factory Scavenger-Scout | -6/Waste Scavenger-Scout | -6/Factory Hacker-Scout | -5/Factory Hacker-Ninja | -4/Factory Scavenger-Ninja | -4/Upper Caves Scavenger-Ninja | -4/Upper Caves Scavenger-Assassin | -4/Warlord Scavenger-Ninja | -3/Proximity Caves Hacker-Ninja | -3/Research Hacker-Ninja | -3/Quarantine Hacker-Mutant | -3/Section 7 Hacker-Ninja | -2/Research Hacker-Ninja | -2/Testing Hacker-Ninja | -1/Access Hacker-Mutant | -1/Command Resources | -11 -10 -10 -9 -9 -9 -8 -8 -7 -7 -7 -7 -7 -6 -6 -6 -6 -5 -4 -4 -4 -4 -3 -3 -3 -3 -2 -2 -1 -1 ----------- Run | Yrd Mat Min Mat Min Exi Min Mat Fac Low Low Zio Dee Pro Fac Was Fac Fac Fac Upp Upp War Pro Res Qua Sec Res Tes Acc Com Matter Collected 12426 | 332 299 66 665 21 18 158 1275 554 457 172 244 354 160 425 174 270 305 1464 14 20 1070 20 35 307 244 1215 885 22 1181 Remotely 308 | . . . 308 . . . . . . . . . . . . . . . . . . . . . . . . . . Salvage Created 11606 | 95 453 40 1400 . . 192 918 827 524 321 . 364 10 737 . 322 323 1292 . 44 . 52 260 371 347 748 606 22 1338 Parts 565 | 6 39 10 103 . . 13 57 35 11 5 . 19 3 58 . 17 7 42 . 2 . 1 9 22 15 20 52 1 18 Haulers Intercepted 29 | . 1 . 6 . . . 6 1 . . . . . 2 . 1 2 2 . . . . . 2 1 5 . . . Recyclers Shooed 10 | . 2 . 1 . . . 2 1 . . . . . 2 . . . 1 . . . . . . . . . . 1 Parts Field Recycled . | . . . . . . . . . . . . . . . . . . . . . . . . . . . . . . Retrieved Matter . | . . . . . . . . . . . . . . . . . . . . . . . . . . . . . . Parts Self-Destructed 16 | . . . . . . . . . 7 2 4 . 3 . . . . . . . . . . . . . . . . Prevented . | . . . . . . . . . . . . . . . . . . . . . . . . . . . . . . Kills | -11 -10 -10 -9 -9 -9 -8 -8 -7 -7 -7 -7 -7 -6 -6 -6 -6 -5 -4 -4 -4 -4 -3 -3 -3 -3 -2 -2 -1 -1 ------- Run | Yrd Mat Min Mat Min Exi Min Mat Fac Low Low Zio Dee Pro Fac Was Fac Fac Fac Upp Upp War Pro Res Qua Sec Res Tes Acc Com Combat Hostiles Destroyed 121 | . 9 6 24 . . 7 14 10 7 5 . 11 1 13 . 2 . 3 . . . . . . 3 . 3 . 3 Melee 12 | . . . . . . . . . . . . 2 1 . . 2 . 3 . . . . . . . . 3 . 1 Guns 46 | . 9 1 23 . . 4 4 . 3 . . 1 . . . . . . . . . . . . 1 . . . . Cannons 19 | . . . . . . . 10 1 . 3 . 1 . 3 . . . . . . . . . . . . . . 1 AOE 40 | . . 5 1 . . 3 . 6 4 1 . 7 . 10 . . . . . . . . . . 2 . . . 1 Classes Destroyed 23 | 2 6 . 2 . . 1 1 1 2 1 . 2 1 1 . . . 1 . . . . 1 . . . 1 . . Worker 24 | . 1 . 2 . . . 1 1 . . . . . 5 . 1 . 5 . . . . . . . . 6 1 1 Builder 11 | . . . . . . . . 3 . . . . . . . . . 2 . . . . . . 1 . 5 . . Tunneler 6 | 2 2 . . . . . . . . . . . . 2 . . . . . . . . . . . . . . . Hauler 29 | . 1 . 6 . . . 6 1 . . . . . 2 . 1 2 2 . . . . . 2 1 5 . . . Recycler 24 | 1 1 . . . . 1 2 4 . . . . . 1 . . 1 6 . . . . 1 . 1 2 . . 3 Minesweeper 1 | . . . . . . . . . 1 . . . . . . . . . . . . . . . . . . . . Mechanic 2 | . . . . . . . . . . . . . . . . . . . . . . . 1 . . . 1 . . Operator 8 | . 1 . . . . . 3 . . . . . . 1 . 1 . . . . . . . 1 . . . . 1 Drone 1 | . . . . . . . . . . . . . 1 . . . . . . . . . . . . . . . . Watcher 24 | . 1 . 5 . . . 1 3 . . . . . 2 . 1 . 1 . . . . 2 3 1 2 1 . 1 Swarmer 37 | . 5 6 7 . . 6 . 2 . . . . . 9 . . . . . . . . . . 2 . . . . Cutter 4 | . . . . . . . . . . . . . . 4 . . . . . . . . . . . . . . . Grunt 34 | . 4 . 6 . . . 5 7 6 4 . . . . . . . 1 . . . . . . . . . . 1 Brawler 2 | . . . 1 . . . . . 1 . . . . . . . . . . . . . . . . . . . . Sentry 17 | . . . 10 . . . 6 1 . . . . . . . . . . . . . . . . . . . . . Specialist 1 | . . . . . . . . . . . . . . . . . . . . . . . . . . . 1 . . Hunter 5 | . . . . . . 1 2 . . . . . . . . 2 . . . . . . . . . . . . . Programmer 3 | . . . . . . . . . . . . . . . . . . 1 . . . . . . . . 2 . . Heavy 1 | . . . . . . . 1 . . . . . . . . . . . . . . . . . . . . . . Behemoth 1 | . . . . . . . . . . 1 . . . . . . . . . . . . . . . . . . . S7 Guard 1 | . . . . . . . . . . . . . . . . . . . . . . . . . 1 . . . . Combat Programmer 1 | . . . . . . . . . . . . . . . . . . . . . . . . . . . . . 1 Z-Technician 5 | . . . . . . . . . . . . 5 . . . . . . . . . . . . . . . . . Z-Light 5 | . . . . . . . . . . . . 5 . . . . . . . . . . . . . . . . . Decomposer 1 | . . . . . . . . . . 1 . . . . . . . . . . . . . . . . . . . Samaritan 6 | . . . . . . . . . 4 1 . . . . . . . . . 1 . . . . . . . . . Assembled 7 | . . . . . . . . . . . . 6 . . . . . 1 . . . . . . . . . . . Best Kill Streak 12 | 2 5 3 5 . . 3 3 12 5 4 . 4 1 6 . 1 1 4 . 1 . . 2 1 4 2 5 1 1 Combat Bots Only 8 | . 5 3 4 . . 3 2 8 5 4 . 3 1 4 . 1 . 1 . . . . . . 3 . 3 . 1 Max Kills in Single Turn 4 | 1 1 3 2 . . 2 2 3 2 2 . 2 1 4 . 1 1 1 . 1 . . 1 1 2 1 1 1 1 Gunslinging 1 | . . . 1 . . . . . . . . . . . . . . . . . . . . . . . . . . Exploded 3 | . . 3 1 . . 2 . 1 2 1 . 2 . 3 . . . . . . . . . . 1 . . . 1 Melee 1 | . . . . . . . . . . . . 1 1 . . 1 . 1 . . . . . . . . 1 . 1 Uniques/NPCs Destroyed 1 | . . . . . . . . . . . . . . . . . . . . . . . . . . . . . 1 MAIN.C Shell (-1/Command) Combat | -11 -10 -10 -9 -9 -9 -8 -8 -7 -7 -7 -7 -7 -6 -6 -6 -6 -5 -4 -4 -4 -4 -3 -3 -3 -3 -2 -2 -1 -1 -------- Run | Yrd Mat Min Mat Min Exi Min Mat Fac Low Low Zio Dee Pro Fac Was Fac Fac Fac Upp Upp War Pro Res Qua Sec Res Tes Acc Com Hostile Shots Fired 1285 | . 67 5 128 . . 25 118 120 37 40 . 21 . 52 . 109 14 30 . 8 3 . 1 6 60 10 56 7 368 Missed 423 | . 8 1 37 . . 2 32 68 8 13 . 7 . 21 . 44 6 14 . 5 1 . . 3 13 6 22 4 108 Damage Taken 20607 | . 536 61 1127 . . 242 1488 642 531 397 398 450 . 485 . 1119 165 597 . 49 13 . 81 88 1480 109 947 135 9467 Core 3660 | . 72 7 111 . . 29 182 136 86 51 90 104 . 39 . 351 38 192 . 14 13 . 79 . 231 30 194 91 1520 Absorbed by Shields 639 | . 46 . 17 . . 97 250 . 8 120 74 . . . . 15 . . . . 12 . . . . . . . . Reduced by Siege Mode 241 | . . . . . . . . . . . . . . . . . . . . . . . . . . . . . 241 Redirected to Shielding 98 | . . . . . . . . . . 12 . 44 . . . . . 33 . 9 . . . . . . . . . Ignored by Resistances 844 | . . . . . . . . . . . . . . . . . . . . . . . . . . . . . 844 Regen/Repaired (Parts) 1618 | . . . . . . . . . . . . . . 96 1026 . 158 20 . . 38 . . . 64 . . . 216 Core Remaining (%) 69 | 100 . 68 . . . 65 66 . . . . . 9 . . 54 96 . . . . 80 . . 76 . 84 . . Volleys Fired 483 | 17 42 5 103 . . 15 119 23 27 15 7 16 . 12 . 1 2 . . . . 1 . 3 17 8 1 5 44 Largest 3 | 2 2 1 2 . . 2 2 1 2 1 1 1 . 1 . 1 1 . . . . 1 . 1 2 1 1 1 3 Hottest 262 | 40 40 33 101 . . 84 84 100 100 100 100 73 . 60 . 43 60 . . . . 38 . 38 138 38 120 120 262 Shots Fired 704 | 34 84 5 195 1 . 28 138 23 32 15 6 16 1 12 . 1 2 . . . . 1 . 3 21 8 1 5 72 Gun 498 | 34 84 3 195 1 . 26 57 10 24 . 1 8 . 4 . . 2 . . . . 1 . 2 15 8 . . 23 Cannon 154 | . . . . . . . 80 5 8 15 . . . . . . . . . . . . . . 4 . 1 4 37 Launcher 38 | . . 2 . . . 2 1 8 . . . 5 1 4 . 1 . . . . . . . . 2 . . . 12 Special 14 | . . . . . . . . . . . 5 3 . 4 . . . . . . . . . 1 . . . 1 . Kinetic 421 | 34 84 3 130 . . 13 113 . 4 8 . . . . . . . . . . . 1 . 2 15 8 . . 6 Thermal 162 | . . . 26 . . 13 24 15 28 7 1 8 . . . . . . . . . . . 1 . . 1 5 33 Explosive 50 | . . 2 . . . 2 1 8 . . 5 8 1 8 . 1 . . . . . . . . 2 . . . 12 Electromagnetic 40 | . . . 39 1 . . . . . . . . . . . . . . . . . . . . . . . . . Entropic 25 | . . . . . . . . . . . . . . . . . . . . . . . . . 4 . . . 21 Phasic 6 | . . . . . . . . . . . . . . 4 . . 2 . . . . . . . . . . . . Robot Hit Streak 24 | 7 8 2 24 . . 8 13 6 7 2 . 8 . 5 . . . . . . . . . . 8 10 . . 18 Robot Miss Streak 5 | 2 5 1 5 1 . 2 3 4 2 1 . 1 . 3 . . . . . . . . . . 1 . . . 2 Penetration Max 1 | . . . . . . 1 1 . . . . . . . . . . . . . . . . . 1 . . . . Secondary Targets 9 | . 4 . 5 . . . . . . . . . . . . . . . . . . . . . . . . . . Max Gunslinging Chain 1 | . 1 . 1 . . . . . . . . . . . . . . . . . . . . . . . . . . Shots Hit Robots 721 | 24 47 2 132 . 4 18 95 30 31 8 3 26 1 25 2 24 11 43 . 1 . 3 7 8 29 22 25 1 99 Core Hits 342 | 5 25 5 58 . . 10 34 25 14 8 . 18 1 25 . 9 3 18 . . . . 5 6 15 11 14 . 33 Critical Kills 6 | . 1 . . . . . 1 3 . 1 . . . . . . . . . . . . . . . . . . . Critical Parts Destroyed 2 | . . . . . . . 1 . . . . . . . . . . . . . . . . . 1 . . . . Critical Strikes 41 | . 1 . 3 . . . 9 4 4 1 . 1 . 1 . 4 2 1 . . . . . 1 3 1 3 . 2 Burn 8 | . . . 2 . . . . . 3 . . 1 . . . . . . . . . . . . . . . . 2 Meltdown 4 | . . . . . . . . 3 . 1 . . . . . . . . . . . . . . . . . . . Destroy 4 | . 1 . . . . . 2 . . . . . . . . . . . . . . . . . 1 . . . . Blast 7 | . . . . . . . 7 . . . . . . . . . . . . . . . . . . . . . . Corrupt 1 | . . . 1 . . . . . . . . . . . . . . . . . . . . . . . . . . Sever 9 | . . . . . . . . 1 1 . . . . 1 . 3 . . . . . . . . 2 . 1 . . Impale 8 | . . . . . . . . . . . . . . . . 1 2 1 . . . . . 1 . 1 2 . . Melee Attacks 553 | . . . . . 4 . . 37 17 7 8 21 26 41 2 46 23 73 . 3 11 6 16 25 17 32 43 6 89 Impact 5 | . . . . . . . . . 2 . 3 . . . . . . . . . . . . . . . . . . Slashing 359 | . . . . . . . . 32 15 7 2 17 26 41 . 28 18 20 . 3 11 . . . 10 . 35 6 88 Piercing 170 | . . . . . . . . . . . . 4 . . . 18 5 49 . . . 6 16 25 7 32 8 . . Sneak Attacks 107 | . . . . . 4 . . 10 6 1 3 6 . 12 2 6 4 19 . 1 . . 3 2 1 6 14 1 6 Combat Hostiles . | . . . . . . . . . . . . . . . . . . . . . . . . . . . . . . Follow-up Attacks 13 | . . . . . . . . . 1 . . 1 . 4 . . . . . . . . . . . . 1 . 6 Damage Inflicted 37160 | 262 613 329 1904 . . 567 3555 2644 1748 1105 . 2124 37 2329 . 1214 627 2309 . 89 . 243 519 576 2000 1101 1951 142 9172 Guns 5349 | 262 613 25 1883 . . 342 813 81 361 . . 77 . . . . . . . . . . . . 427 226 . . 239 Cannons 6576 | . . . . . . . 2742 590 228 407 . . . . . . . . . . . . . . 430 . . . 2179 Explosions 7162 | . . 304 21 . . 225 . 1025 590 448 . 945 . 880 . 57 . . . . . . . . 275 . . . 2392 Melee 17890 | . . . . . . . . 948 569 250 . 1028 37 1344 . 1157 627 2309 . 89 . 243 515 576 868 875 1951 142 4362 Ramming 4 | . . . . . . . . . . . . . . . . . . . . . . . 4 . . . . . . Kinetic 6244 | 262 613 25 1226 . . 183 3189 . . . . . . . . . . . . . . . . . 427 226 . . 93 Thermal 4729 | . . . 284 . . 159 366 1153 1179 855 . 77 . . . . . . . . . . . . . . . . 656 Explosive 5576 | . . 304 . . . 225 . 543 . . . 945 . 835 . 57 . . . . . . . . 275 . . . 2392 Electromagnetic 439 | . . . 394 . . . . . . . . . . 45 . . . . . . . . . . . . . . . Impact . | . . . . . . . . . . . . . . . . . . . . . . . . . . . . . . Slashing 12440 | . . . . . . . . 948 569 250 . 812 37 1449 . 650 375 661 . 89 . . . . 669 . 1427 142 4362 Piercing 5629 | . . . . . . . . . . . . 290 . . . 507 252 1648 . . . 243 515 576 199 875 524 . . Entropic 2099 | . . . . . . . . . . . . . . . . . . . . . . . . . 430 . . . 1669 Highest Corruption 15 | . . . 5 5 5 5 . 1 8 4 4 3 3 . . 2 . 2 . . . . . . . . 11 . 15 Average Corruption 4 | . . . 5 5 5 5 . 1 4 4 3 3 3 . . 2 . 1 . . . . . . . . 8 . 12 Corruption Purged 11 | . . . . . . . . 1 5 . . . . . . . . 2 . . . . . . . . . . 3 Corruption Blocked 3 | . . . . . . . . . . . . . . . . . . . . . . . . . . 3 . . . Effects 215 | . . . 49 11 19 15 . 4 14 21 15 16 7 . . . . 1 . . . . . . . . 4 . 39 Message Errors 62 | . . . 13 2 4 5 . . 3 9 5 6 2 . . . . . . . . . . . . . 2 . 11 Matter Fused 42 | . . . 8 2 3 4 . 2 3 7 3 4 . . . . . . . . . . . . . . . . 6 Heat Flow Errors 29 | . . . 7 1 3 6 . . 2 2 2 2 1 . . . . . . . . . . . . . 1 . 2 Energy Discharges 21 | . . . 6 1 1 . . . . 1 1 1 2 . . . . . . . . . . . . . . . 8 Parts Rejected 1 | . . . . . . . . . . . . . . . . . . . . . . . . . . . . . 1 Parts Fused 3 | . . . 1 . . . . . . . 1 . . . . . . . . . . . . . . . . . 1 Data Loss (minor) 29 | . . . 8 3 6 . . . 3 1 1 1 . . . . . 1 . . . . . . . . 1 . 4 Data Loss (major) 11 | . . . 3 1 1 . . 2 . 1 1 1 . . . . . . . . . . . . . . . . 1 Misfires 6 | . . . . 1 . . . . 3 . . . 1 . . . . . . . . . . . . . . . 1 Alerts 6 | . . . 2 . 1 . . . . . 1 1 1 . . . . . . . . . . . . . . . . Misdirections 1 | . . . . . . . . . . . . . . . . . . . . . . . . . . . . . 1 Weapon Failures 4 | . . . 1 . . . . . . . . . . . . . . . . . . . . . . . . . 3 Overload Shots 1 | . . . . . . . . . . . 1 . . . . . . . . . . . . . . . . . . Overflow Damage 4041 | . . 43 . . . . 190 481 308 182 . 304 . 277 . 180 114 300 . 71 . 201 157 . 54 . 393 102 684 Projectiles 561 | . . . . . . . 190 98 133 94 . . . . . . . . . . . . . . 46 . . . . Explosions 298 | . . 43 . . . . . 105 56 . . 28 . 66 . . . . . . . . . . . . . . . Melee 3182 | . . . . . . . . 278 119 88 . 276 . 211 . 180 114 300 . 71 . 201 157 . 8 . 393 102 684 Knockbacks 21 | . . . . . . . 21 . . . . . . . . . . . . . . . . . . . . . . Impact . | . . . . . . . . . . . . . . . . . . . . . . . . . . . . . . Kinetic 21 | . . . . . . . 21 . . . . . . . . . . . . . . . . . . . . . . Secondary . | . . . . . . . . . . . . . . . . . . . . . . . . . . . . . . Self-Inflicted Damage 716 | . . 27 . . . 87 . 85 35 51 77 63 . 130 . 51 . . . . . . 2 . 108 . . . . Shots 16 | . . 2 . . . 2 . 2 1 1 1 1 . 3 . 1 . . . . . . . . 2 . . . . Rammed 1 | . . . . . . . . . . . . . . . . . . . . . . . 1 . . . . . . Targets Rammed 1 | . . . . . . . . . . . . . . . . . . . . . . . 1 . . . . . . Kicked . | . . . . . . . . . . . . . . . . . . . . . . . . . . . . . . Crushed . | . . . . . . . . . . . . . . . . . . . . . . . . . . . . . . Highest Temperature 557 | . 30 . 277 141 275 283 369 29 218 201 143 264 235 65 262 165 185 180 . . . . . 249 557 17 28 52 442 Average Temperature 64 | . 10 . 61 61 120 119 83 4 67 116 50 76 100 14 64 56 29 63 . . . . . 89 154 5 7 14 88 Received Heat Transfer 3006 | . 177 . 351 . . . 358 159 238 163 . 117 . 51 . 75 54 12 . . . . . 9 864 18 . 18 342 Effects 14 | . . . 1 . . . 1 . . . . . 1 . . . . . . . . . . . 8 . . . 3 Shutdowns 1 | . . . . . . . . . . . . . . . . . . . . . . . . . 1 . . . . Energy Bleed 2 | . . . 1 . . . . . . . . . 1 . . . . . . . . . . . . . . . . Interference 9 | . . . . . . . 1 . . . . . . . . . . . . . . . . . 6 . . . 2 Damage (minor) 1 | . . . . . . . . . . . . . . . . . . . . . . . . . 1 . . . . Damage (major) 1 | . . . . . . . . . . . . . . . . . . . . . . . . . . . . . 1 Siege Activations 1 | . . . . . . . . . . . . . . . . . . . . . . . . . . . . . 1 Total Turns 37 | . . . . . . . . . . . . . . . . . . . . . . . . . . . . . 37 Longest Duration 37 | . . . . . . . . . . . . . . . . . . . . . . . . . . . . . 37 Robots Corrupted . | . . . . . . . . . . . . . . . . . . . . . . . . . . . . . . Combat Hostiles . | . . . . . . . . . . . . . . . . . . . . . . . . . . . . . . Parts Fried 2 | . . . 2 . . . . . . . . . . . . . . . . . . . . . . . . . . Impact Corruptions . | . . . . . . . . . . . . . . . . . . . . . . . . . . . . . . Robots Melted 4 | . . . . . . . . 3 . 1 . . . . . . . . . . . . . . . . . . . Combat Hostiles 4 | . . . . . . . . 3 . 1 . . . . . . . . . . . . . . . . . . . Parts Melted 14 | . . . 2 . . . 3 1 1 2 . 2 . . . . . 2 . . . . . . . . . . 1 Heat Transferred 6214 | . . . 753 . . 333 740 1028 1725 880 . 222 . . . . . . . . . . . . . . . . 533 Parts Sabotaged . | . . . . . . . . . . . . . . . . . . . . . . . . . . . . . . Parts Stolen . | . . . . . . . . . . . . . . . . . . . . . . . . . . . . . . Parts Stripped . | . . . . . . . . . . . . . . . . . . . . . . . . . . . . . . Power Chain Reactions 1 | . . . 1 . . . . . . . . . . . . . . . . . . . . . . . . . . Alert | -11 -10 -10 -9 -9 -9 -8 -8 -7 -7 -7 -7 -7 -6 -6 -6 -6 -5 -4 -4 -4 -4 -3 -3 -3 -3 -2 -2 -1 -1 ------- Run | Yrd Mat Min Mat Min Exi Min Mat Fac Low Low Zio Dee Pro Fac Was Fac Fac Fac Upp Upp War Pro Res Qua Sec Res Tes Acc Com Peak Influence 1084 | 15 191 199 449 132 . 138 228 607 . . . . . 1084 406 936 695 318 . . . . 102 318 464 355 299 188 215 Initial 752 | . 9 13 . 132 . . 29 54 . . . . . 752 331 258 432 156 . . . . . 65 126 261 140 81 120 Average 216 | 5 66 76 272 132 . 101 89 271 . . . . . 894 369 748 493 191 . . . . 58 210 248 270 141 126 61 Maximum Alert Level 3 | . . . 2 . . . 1 2 . . . . . 3 2 3 2 1 . . . . . 1 2 1 1 . 1 Low Security (%) 64 | 100 100 100 28 100 . 100 98 52 . . . . . . . . . 48 . . . . 100 41 40 24 93 100 91 Level 1 21 | . . . 62 . . . 1 19 . . . . . . 98 12 2 51 . . . . . 58 54 75 6 . 8 Level 2 7 | . . . 9 . . . . 28 . . . . . 1 1 17 97 . . . . . . . 5 . . . . Level 3 6 | . . . . . . . . . . . . . . 98 . 69 . . . . . . . . . . . . . Level 4 . | . . . . . . . . . . . . . . . . . . . . . . . . . . . . . . Level 5 . | . . . . . . . . . . . . . . . . . . . . . . . . . . . . . . High Security . | . . . . . . . . . . . . . . . . . . . . . . . . . . . . . . Max Security . | . . . . . . . . . . . . . . . . . . . . . . . . . . . . . . Squads Dispatched 66 | . 2 . 2 . . . 5 7 . . . . . 7 . 10 5 7 . . . . 1 1 . 5 3 1 10 Investigation 28 | . 1 . 2 . . . 1 5 . . . . . 3 . 2 3 4 . . . . . . . 3 1 . 3 Extermination 9 | . . . . . . . . . . . . . . . . . . 3 . . . . . 1 . . 1 . 4 Reinforcement 23 | . 1 . . . . . 2 2 . . . . . 4 . 4 2 . . . . . 1 . . 2 1 1 3 Assault 2 | . . . . . . . 1 . . . . . . . . 1 . . . . . . . . . . . . . Garrison 4 | . . . . . . . 1 . . . . . . . . 3 . . . . . . . . . . . . . Intercept . | . . . . . . . . . . . . . . . . . . . . . . . . . . . . . . Searches Triggered 4 | . . . . . . . . . . . . . . 2 . . 2 . . . . . . . . . . . . Construction Impeded 3 | . . . . . . . . 1 . . . . . . . 2 . . . . . . . . . . . . . Haulers Reinforced 3 | . . . . . . . . . . . . . . 2 . . . . . . . . . . . 1 . . . Active Scanning Responses . | . . . . . . . . . . . . . . . . . . . . . . . . . . . . . . Cargo Convoy Interrupts 1 | . . . . . . . . . . . . . . . . . . 1 . . . . . . . . . . . Stealth | -11 -10 -10 -9 -9 -9 -8 -8 -7 -7 -7 -7 -7 -6 -6 -6 -6 -5 -4 -4 -4 -4 -3 -3 -3 -3 -2 -2 -1 -1 --------- Run | Yrd Mat Min Mat Min Exi Min Mat Fac Low Low Zio Dee Pro Fac Was Fac Fac Fac Upp Upp War Pro Res Qua Sec Res Tes Acc Com Distress Signals 17 | . . 1 1 . . . 1 2 . . . . . 2 . . . . . . 1 . . . . 4 . . 5 Communications Jammed 45 | . . . . . . . . . . . . . 2 . . 6 . . . . . . . 1 6 6 23 . 1 Distress Signals 37 | . . . . . . . . . . . . . . . . . . . . . . . . 1 6 6 23 . 1 Times Spotted 390 | . 17 4 37 . . 7 25 40 7 5 . 11 4 19 5 38 14 15 . 2 59 . 5 10 15 8 14 3 26 Peak Tracking Total 13 | . 7 3 5 . . 3 3 11 3 4 . 3 2 5 2 10 8 4 . 2 13 . 2 6 4 3 7 3 9 Tactical Retreats 57 | . 1 1 2 . . . 6 12 . . . 1 . 2 . 10 7 2 . 1 2 . 1 1 4 1 1 1 1 Traps | -11 -10 -10 -9 -9 -9 -8 -8 -7 -7 -7 -7 -7 -6 -6 -6 -6 -5 -4 -4 -4 -4 -3 -3 -3 -3 -2 -2 -1 -1 ------- Run | Yrd Mat Min Mat Min Exi Min Mat Fac Low Low Zio Dee Pro Fac Was Fac Fac Fac Upp Upp War Pro Res Qua Sec Res Tes Acc Com Traps Triggered 12 | . 1 . . . . . . 2 . . . . . 1 . 2 2 1 . . . . . 1 . . 2 . . Indirectly . | . . . . . . . . . . . . . . . . . . . . . . . . . . . . . . Trap Hack Attempts 52 | . . . . . . . . 39 . . . . . . . . . 13 . . . . . . . . . . . Triggered . | . . . . . . . . . . . . . . . . . . . . . . . . . . . . . . Disarmed . | . . . . . . . . . . . . . . . . . . . . . . . . . . . . . . Reprogrammed 26 | . . . . . . . . 21 . . . . . . . . . 5 . . . . . . . . . . . Reused 17 | . . . . . . . . 2 . . . 9 . . . . . 6 . . . . . . . . . . . Traps Extracted 14 | . . . . . . . . 12 . . . . . . . . . 2 . . . . . . . . . . . Installed 24 | . . . . . . . . . 8 . . 10 . . . . . 6 . . . . . . . . . . . Triggered 20 | . . . . . . . . 2 . . . . . . . . . 6 1 . 11 . . . . . . . . Most Traps Carried 16 | . . 4 4 4 4 4 4 16 16 16 16 16 6 6 6 6 6 6 2 2 2 . . . . . . . . Machines | -11 -10 -10 -9 -9 -9 -8 -8 -7 -7 -7 -7 -7 -6 -6 -6 -6 -5 -4 -4 -4 -4 -3 -3 -3 -3 -2 -2 -1 -1 ---------- Run | Yrd Mat Min Mat Min Exi Min Mat Fac Low Low Zio Dee Pro Fac Was Fac Fac Fac Upp Upp War Pro Res Qua Sec Res Tes Acc Com Machines Disabled 24 | . . . 1 . . 1 2 1 . . . 2 . 7 . 1 . 1 . 1 . . . 5 1 . 1 . . Max in Single Turn 3 | . . . 1 . . 1 1 1 . . . 1 . 3 . . . . . 1 . . . 1 1 . 1 . . Garrison Access 10 | . . . . . . . 1 2 . . . . . 2 . 1 . . . . . . . 1 . 2 . 1 . Phase Generator 1 | . . . . . . . . . . . . . . . . . . . . . . . . . . . . . 1 Machines Repaired . | . . . . . . . . . . . . . . . . . . . . . . . . . . . . . . Machines Dismantled 6 | . . . . . . . . . . . . . . . . . . . . . 1 . . 2 . . 2 . 1 Machines Sabotaged . | . . . . . . . . . . . . . . . . . . . . . . . . . . . . . . Overloaded Fab Kills . | . . . . . . . . . . . . . . . . . . . . . . . . . . . . . . Hacking | -11 -10 -10 -9 -9 -9 -8 -8 -7 -7 -7 -7 -7 -6 -6 -6 -6 -5 -4 -4 -4 -4 -3 -3 -3 -3 -2 -2 -1 -1 --------- Run | Yrd Mat Min Mat Min Exi Min Mat Fac Low Low Zio Dee Pro Fac Was Fac Fac Fac Upp Upp War Pro Res Qua Sec Res Tes Acc Com Machines Accessed 161 | . 5 . 12 . 2 . 13 18 1 . . . . 12 . 16 9 14 . 2 4 . 2 11 6 7 13 8 6 Terminals 87 | . 4 . 11 . . . 11 8 . . . . . 3 . 5 2 6 . . . . 2 7 5 1 10 6 6 Fabricators 17 | . . . . . . . . 3 . . . . . 2 . 3 3 3 . . . . . . . 2 1 . . Repair Stations 12 | . 1 . . . . . . 1 . . . . . 3 . 2 1 1 . . . . . 2 . . 1 . . Recycling Units 14 | . . . 1 . . . . 4 . . . . . . . 2 3 2 . . . . . . . 1 . 1 . Scanalyzers 10 | . . . . . . . 2 . . . . . . 1 . 3 . . . . . . . 1 1 1 1 . . Garrison Access 12 | . . . . . . . . 2 . . . . . 3 . 1 . 2 . . . . . 1 . 2 . 1 . Total Hacks 441 | . 18 . 28 . 5 . 60 52 1 . . . . 28 . 36 30 40 . 2 11 . 9 25 17 15 41 14 9 Successful 298 | . 7 . 13 . 5 . 43 34 1 . . . . 21 . 22 25 32 . 2 11 . 5 13 12 11 27 9 5 Failed 141 | . 10 . 15 . . . 17 18 . . . . . 7 . 14 5 7 . . . . 4 12 5 4 14 5 4 Catastrophic 18 | . 2 . 2 . . . 3 3 . . . . . 1 . 2 1 . . . . . . 2 1 . . . 1 Database Lockouts 2 | . 1 . . . . . . . . . . . . . . . . 1 . . . . . . . . . . . Manual 142 | . 11 . 8 . 1 . 8 21 . . 1 . . 2 . 13 12 21 . . . . 7 8 3 1 20 4 1 Terminals 229 | . 17 . 27 . . . 32 26 . . . . . 6 . 10 3 16 . . . . 9 17 12 1 33 11 9 Fabricators 54 | . . . . . . . . 7 . . . . . 5 . 9 15 10 . . . . . . . 6 2 . . Repair Stations 28 | . 1 . . . . . . 2 . . . . . 7 . 5 4 3 . . . . . 5 . . 1 . . Recycling Units 38 | . . . 1 . . . . 13 . . . . . . . 5 8 6 . . . . . . . 3 . 2 . Scanalyzers 53 | . . . . . . . 28 . . . . . . 5 . 6 . . . . . . . 2 5 2 5 . . Garrison Access 20 | . . . . . . . . 4 . . . . . 5 . 1 . 5 . . . . . 1 . 3 . 1 . Terminal Hacks 113 | . 4 . 12 . 5 . 14 10 1 . . . . 3 . 3 1 9 . 2 11 . 2 7 6 1 12 6 4 Record 17 | . . . . . 4 . 1 . . . . . . . . . . . . 1 10 . . 1 . . . . . Part Schematic 9 | . . . . . . . 2 3 . . . . . . . . . 1 . . . . . . 1 . 2 . . Robot Analysis 7 | . 2 . 2 . . . 1 1 . . . . . . . . . . . . . . . . . . . . 1 Prototype ID Bank 13 | . . . 4 . . . 5 2 . . . . . . . . . . . . . . . 1 . . 1 . . Open Door 7 | . . . . . . . . . 1 . . . . . . . . . . 1 1 . . . . . . 3 1 Open DSF 2 | . . . . . . . . . . . . . . . . . . 1 . . . . . . . 1 . . . Level Access Points 3 | . . . . . . . . . . . . . . . . . . . . . . . . 1 1 . 1 . . Branch Access Points 5 | . . . . . . . 1 1 . . . . . . . . . 1 . . . . 1 . . . . 1 . Emergency Access Points 2 | . . . . . . . 1 . . . . . . . . . . 1 . . . . . . . . . . . Machine Index 2 | . . . . . . . . . . . . . . 1 . . . . . . . . . . . . 1 . . Terminal Index 5 | . 1 . 1 . . . . . . . . . . . . . 1 1 . . . . . . . . 1 . . Fabricator Index 1 | . . . . . . . . . . . . . . 1 . . . . . . . . . . . . . . . Scanalyzer Index 1 | . . . . . . . . . . . . . . . . . . . . . . . . . 1 . . . . Garrison Index 1 | . . . . . . . . . . . . . . 1 . . . . . . . . . . . . . . . Alert Level 3 | . . . . . . . 1 . . . . . . . . . . . . . . . . 1 1 . . . . Unreport Threat 3 | . . . . . . . . . . . . . . . . 2 . . . . . . . . . . 1 . . Locate Traps 11 | . 1 . 3 . . . 2 1 . . . . . . . . . 1 . . . . 1 1 . . . 1 . Reprogram Traps 3 | . . . . . . . . 2 . . . . . . . . . 1 . . . . . . . . . . . Recall Extermination 2 | . . . . . . . . . . . . . . . . . . 1 . . . . . 1 . . . . . Hauler Manifests 2 | . . . 1 . . . . . . . . . . . . . . . . . . . . . . . 1 . . Registered Components 1 | . . . . . . . . . . . . . . . . . . . . . . . . . . . 1 . . Registered Prototypes 1 | . . . . . . . . . . . . . . . . . . . . . . . . . . . 1 . . Zone Layout 9 | . . . 1 . . . . . . . . . . . . 1 . 1 . . . . . 1 2 . 2 1 . Derelict Proto ID Bank 1 | . . . . . 1 . . . . . . . . . . . . . . . . . . . . . . . . Disengage Seal 2 | . . . . . . . . . . . . . . . . . . . . . . . . . . . . . 2 Fabricator Hacks 28 | . . . . . . . . 3 . . . . . 3 . 3 7 6 . . . . . . . 5 1 . . Network Status 6 | . . . . . . . . 1 . . . . . 1 . 1 1 1 . . . . . . . 1 . . . Load Schematic 13 | . . . . . . . . 1 . . . . . 2 . 1 4 2 . . . . . . . 2 1 . . Build 9 | . . . . . . . . 1 . . . . . . . 1 2 3 . . . . . . . 2 . . . Repair Station Hacks 17 | . 1 . . . . . . 1 . . . . . 6 . 2 4 2 . . . . . 1 . . . . . Scan Component 8 | . . . . . . . . . . . . . . 3 . 1 2 1 . . . . . 1 . . . . . Repair 6 | . . . . . . . . . . . . . . 3 . . 2 1 . . . . . . . . . . . Refit 3 | . 1 . . . . . . 1 . . . . . . . 1 . . . . . . . . . . . . . Recycling Unit Hacks 16 | . . . 1 . . . . 6 . . . . . . . 1 4 2 . . . . . . . 2 . . . Report Inventory 12 | . . . 1 . . . . 4 . . . . . . . 1 3 2 . . . . . . . 1 . . . Retrieve Components 4 | . . . . . . . . 2 . . . . . . . . 1 . . . . . . . . 1 . . . Scanalyzer 45 | . . . . . . . 25 . . . . . . 5 . 4 . . . . . . . 1 4 1 5 . . Insert Component 23 | . . . . . . . 12 . . . . . . 2 . 2 . . . . . . . 1 2 1 3 . . Analyze 22 | . . . . . . . 13 . . . . . . 3 . 2 . . . . . . . . 2 . 2 . . Garrison Access Hacks 9 | . . . . . . . . 2 . . . . . 2 . 1 . . . . . . . 1 . 2 . 1 . Seal Access 9 | . . . . . . . . 2 . . . . . 2 . 1 . . . . . . . 1 . 2 . 1 . Unauthorized Hacks 70 | . 2 . . . . . 4 12 . . . . . 2 . 8 9 13 . . . . 3 3 2 . 9 2 1 Terminals 34 | . 2 . . . . . 4 4 . . . . . . . 2 . 4 . . . . 3 3 2 . 8 1 1 Track 12 | . . . . . . . 1 1 . . . . . . . 1 . 1 . . . . 1 1 1 . 4 . 1 Assimilate 4 | . . . . . . . . 1 . . . . . . . . . 1 . . . . . 1 1 . . . . Botnet 14 | . 1 . . . . . 2 2 . . . . . . . 1 . 2 . . . . 1 1 . . 3 1 . Disrupt 1 | . . . . . . . . . . . . . . . . . . . . . . . . . . . 1 . . Operators 3 | . 1 . . . . . 1 . . . . . . . . . . . . . . . 1 . . . . . . Fabricators 18 | . . . . . . . . 2 . . . . . 2 . 3 6 4 . . . . . . . . 1 . . Report 1 | . . . . . . . . . . . . . . . . . . 1 . . . . . . . . . . . Prioritize 4 | . . . . . . . . . . . . . . . . 1 1 2 . . . . . . . . . . . Liberate 3 | . . . . . . . . . . . . . . . . 1 1 1 . . . . . . . . . . . Haulers 2 | . . . . . . . . 1 . . . . . . . . 1 . . . . . . . . . . . . Recompile 8 | . . . . . . . . 1 . . . . . 2 . 1 3 . . . . . . . . . 1 . . Repair Stations 1 | . . . . . . . . . . . . . . . . . . 1 . . . . . . . . . . . Mechanics 1 | . . . . . . . . . . . . . . . . . . 1 . . . . . . . . . . . Recycling Units 16 | . . . . . . . . 6 . . . . . . . 3 3 3 . . . . . . . . . 1 . Monitor 1 | . . . . . . . . 1 . . . . . . . . . . . . . . . . . . . . . Reject 6 | . . . . . . . . 2 . . . . . . . 1 1 2 . . . . . . . . . . . Recyclers 2 | . . . . . . . . 1 . . . . . . . 1 . . . . . . . . . . . . . Mask 7 | . . . . . . . . 2 . . . . . . . 1 2 1 . . . . . . . . . 1 . Scanalyzers . | . . . . . . . . . . . . . . . . . . . . . . . . . . . . . . Garrison Access 1 | . . . . . . . . . . . . . . . . . . 1 . . . . . . . . . . . Reprogram 1 | . . . . . . . . . . . . . . . . . . 1 . . . . . . . . . . . Data Cores Recovered 3 | . . . . . . . 1 . . . . . . 1 . . . . . . . . . 1 . . . . . Used . | . . . . . . . . . . . . . . . . . . . . . . . . . . . . . . Hacking Detections 125 | . 5 . 10 . . . 13 17 . . . . . 7 . 15 6 12 . . . . 2 9 6 5 10 5 3 Full Trace Events 12 | . . . 2 . . . 1 2 . . . . . 1 . . . 3 . . . . . . . 2 . . 1 Feedback Events 1 | . . . . . . . . 1 . . . . . . . . . . . . . . . . . . . . . Corruption 1 | . . . . . . . . 1 . . . . . . . . . . . . . . . . . . . . . Feedback Blocked . | . . . . . . . . . . . . . . . . . . . . . . . . . . . . . . Robot Schematics Acquired 2 | . . . . . . . . . . . 2 . . . . . . . . . . . . . . . . . . Robots Built 4 | . . . . . . . . 4 . . . . . . . . . . . . . . . . . . . . . Authchips . | . . . . . . . . . . . . . . . . . . . . . . . . . . . . . . Time 67 | . . . . . . . . 67 . . . . . . . . . . . . . . . . . . . . . Total Robot Build Rating 16 | . . . . . . . . 16 . . . . . . . . . . . . . . . . . . . . . Part Schematics Acquired 42 | . . . . . . . 13 3 . . 16 . . 2 . 2 . 1 . . . . . . 1 . 4 . . Parts Built 6 | . . . . . . . . . . . . . . . . 1 2 3 . . . . . . . . . . . Authchips 5 | . . . . . . . . . . . . . . . . 1 2 2 . . . . . . . . . . . Time 714 | . . . . . . . . . . . . . . . . 38 129 251 . . . . . . . 296 . . . Total Part Build Rating 34 | . . . . . . . . . . . . . . . . 5 10 19 . . . . . . . . . . . Parts Repaired 6 | . . . . . . . . . . . . . . 3 . . 2 1 . . . . . . . . . . . Time 386 | . . . . . . . . . . . . . . 145 . . 142 99 . . . . . . . . . . . Parts Recycled . | . . . . . . . . . . . . . . . . . . . . . . . . . . . . . . Recycled Matter . | . . . . . . . . . . . . . . . . . . . . . . . . . . . . . . Retrieved Matter . | . . . . . . . . . . . . . . . . . . . . . . . . . . . . . . Retrieved Components 13 | . . . . . . . . 8 . . . . . . . . 2 . . . . . . . . 3 . . . Parts Scanalyzed 19 | . . . . . . . 11 . . . . . . 2 . 2 . . . . . . . . 1 1 2 . . Part Schematics Acquired 17 | . . . . . . . 11 . . . . . . 2 . 2 . . . . . . . . . . 2 . . Parts Damaged 3 | . . . . . . . . . . . . . . 1 . . . . . . . . . . . 1 1 . . Bothacking | -11 -10 -10 -9 -9 -9 -8 -8 -7 -7 -7 -7 -7 -6 -6 -6 -6 -5 -4 -4 -4 -4 -3 -3 -3 -3 -2 -2 -1 -1 ------------ Run | Yrd Mat Min Mat Min Exi Min Mat Fac Low Low Zio Dee Pro Fac Was Fac Fac Fac Upp Upp War Pro Res Qua Sec Res Tes Acc Com Used RIF Installer . | . . . . . . . . . . . . . . . . . . . . . . . . . . . . . . Robots Hacked 18 | . . . . . 4 . . 4 . . 3 . . . 2 . . 4 . . . . . . . . . . 1 Non-combat 12 | . . . . . 3 . . 3 . . 1 . . . 1 . . 4 . . . . . . . . . . . Combat 6 | . . . . . 1 . . 1 . . 2 . . . 1 . . . . . . . . . . . . . 1 Robot Hacks Applied 19 | . . . . . 4 . . 5 . . 3 . . . 2 . . 4 . . . . . . . . . . 1 parse_system 12 | . . . . . 4 . . 2 . . 3 . . . 2 . . . . . . . . . . . . . 1 no_distress 1 | . . . . . . . . 1 . . . . . . . . . . . . . . . . . . . . . find_chute 4 | . . . . . . . . 1 . . . . . . . . . 3 . . . . . . . . . . . find_fabricator 1 | . . . . . . . . . . . . . . . . . . 1 . . . . . . . . . . . find_recycling 1 | . . . . . . . . 1 . . . . . . . . . . . . . . . . . . . . . Relay Couplers Released 2 | . . . . . . . 2 . . . . . . . . . . . . . . . . . . . . . . Machine Destruction 2 | . . . . . . . 2 . . . . . . . . . . . . . . . . . . . . . . Fabnet Peak Effective % . | . . . . . . . . . . . . . . . . . . . . . . . . . . . . . . Robots Rewired 2 | . . . . . . . . . . . . . . . . . . . . . 2 . . . . . . . . Allies Hacked . | . . . . . . . . . . . . . . . . . . . . . . . . . . . . . . Hacks Repelled . | . . . . . . . . . . . . . . . . . . . . . . . . . . . . . . Allies | -11 -10 -10 -9 -9 -9 -8 -8 -7 -7 -7 -7 -7 -6 -6 -6 -6 -5 -4 -4 -4 -4 -3 -3 -3 -3 -2 -2 -1 -1 -------- Run | Yrd Mat Min Mat Min Exi Min Mat Fac Low Low Zio Dee Pro Fac Was Fac Fac Fac Upp Upp War Pro Res Qua Sec Res Tes Acc Com Total Allies 37 | . . 3 . . . . . 5 . . . . . . 18 3 . 5 . . 2 . . . 1 . . . . Largest Group 18 | . . 3 3 . . . . 4 . . . . . . 18 9 . 5 . . 2 . . . 1 . . . . Highest-Rated Group 638 | . . 40 40 . . . . 48 . . . . . . 638 383 . 198 . . 130 . . . 26 . . . . Highest-Rated Ally 65 | . . 16 16 . . . . 12 . . . . . . 50 50 . 47 . . 65 . . . 26 . . . . Total Orders 6 | . . . . . . . . 2 . . . . . . . . . . . . 4 . . . . . . . . STAY 2 | . . . . . . . . . . . . . . . . . . . . . 2 . . . . . . . . FOLLOW 1 | . . . . . . . . . . . . . . . . . . . . . 1 . . . . . . . . GUARD 1 | . . . . . . . . . . . . . . . . . . . . . 1 . . . . . . . . EXPLORE 2 | . . . . . . . . 2 . . . . . . . . . . . . . . . . . . . . . Ally Attacks 274 | . . . 9 . . . . 26 . . . . . . 125 89 . 25 . . . . . . . . . . . Total Damage 9726 | . . . 91 . . . . 279 . . . . . . 5990 2390 . 976 . . . . . . . . . . . Kills 37 | . . . 1 . . . . 2 . . . . . . 13 16 . 5 . . . . . . . . . . . Allies Corrupted 1 | . . . . . . . . . . . . . . . . . . 1 . . . . . . . . . . . Allies Melted 3 | . . . . . . . . . . . . . . . . . . . . . . . . . . 2 . . 1 Intel | -11 -10 -10 -9 -9 -9 -8 -8 -7 -7 -7 -7 -7 -6 -6 -6 -6 -5 -4 -4 -4 -4 -3 -3 -3 -3 -2 -2 -1 -1 ------- Run | Yrd Mat Min Mat Min Exi Min Mat Fac Low Low Zio Dee Pro Fac Was Fac Fac Fac Upp Upp War Pro Res Qua Sec Res Tes Acc Com Robot Analysis Total 7 | . 2 . 2 . . . 1 1 . . . . . . . . . . . . . . . . . . . . 1 Derelict Logs Recovered 12 | . . 1 . . . . . . 2 2 2 . 1 . . . . . 2 2 . . . . . . . . . Drone Launches 2 | . . . . . . . . 2 . . . . . . . . . . . . . . . . . . . . . Drone Recoveries . | . . . . . . . . . . . . . . . . . . . . . . . . . . . . . . Exploration | -11 -10 -10 -9 -9 -9 -8 -8 -7 -7 -7 -7 -7 -6 -6 -6 -6 -5 -4 -4 -4 -4 -3 -3 -3 -3 -2 -2 -1 -1 ------------- Run | Yrd Mat Min Mat Min Exi Min Mat Fac Low Low Zio Dee Pro Fac Was Fac Fac Fac Upp Upp War Pro Res Qua Sec Res Tes Acc Com Turns Passed 26901 | 116 996 851 2420 303 629 617 4197 1029 1052 1054 2798 976 397 748 278 622 614 1179 204 166 980 791 179 455 342 628 437 79 1764 Spaces Moved 26603 | 52 511 429 948 145 311 269 1587 1885 694 633 2070 1087 421 1170 429 1140 1182 1966 815 557 1034 444 393 1358 705 1857 743 210 1558 Core 10 | 1 . . . . . . . . . . . 2 . . . . . 1 . . 2 . . . . . . . 4 Treads 1068 | . . . . . 3 . 837 . . 221 1 . . . . . . . . . . . . . . . . . 6 Legs 90 | . . . . . . . . . . 2 88 . . . . . . . . . . . . . . . . . . Wheels 6562 | 51 511 429 948 145 308 269 708 101 694 410 1710 278 . . . . . . . . . . . . . . . . . Hover 6528 | . . . . . . . . . . . . 807 421 1170 428 473 . . . . . . . . . 728 743 210 1548 Flight 12345 | . . . . . . . 42 1784 . . 271 . . . 1 667 1182 1965 815 557 1032 444 393 1358 705 1129 . . . Fastest Speed 6 | 50 100 175 200 210 195 210 26 23 80 110 55 44 44 22 29 22 22 23 25 25 24 24 11 7 6 12 22 22 22 Average Speed 70 | 99 136 180 212 210 197 210 233 30 101 154 129 70 44 30 31 30 27 24 25 25 27 24 24 18 14 18 23 22 53 Slowest Speed 700 | 100 215 215 215 210 480 210 560 115 110 260 280 700 44 128 497 147 106 200 25 25 250 24 103 96 104 26 115 22 180 Overloaded Moves 46 | . . . . . . . . . . . . . . . . . . . . . . . 5 30 4 . . . 7 Propulsion Burnouts . | . . . . . . . . . . . . . . . . . . . . . . . . . . . . . . Robots Hopped 57 | . . . . . . . . 7 . . . . . . . 7 9 14 1 1 2 . 6 2 3 5 . . . Cave-ins Triggered 1 | . . . . . . . . . . . 1 . . . . . . . . . . . . . . . . . . Exploration Rate (%) 58 | 6 84 94 77 21 70 55 99 37 81 75 87 80 56 30 97 34 28 36 92 80 92 63 8 74 33 52 83 10 28 Regions Visited 29 Branch Regions 17 Pre-discovered Areas 7 | . . . . 1 1 . . . 1 . 2 . . . . . . . 2 . . . . . . . . . . Known Exits Taken 15 | . . . . . . . . 1 . . . . 1 . . 1 1 1 1 1 1 1 1 1 1 1 1 1 . Unknown Exits Taken 12 | 1 1 1 1 1 1 1 1 . 1 1 1 1 . . . . . . . . . . . . . . . . . Scrap Searched 27 | . . 3 . 2 . 1 . . 5 2 4 . 4 . . . . . 4 2 . . . . . . . . . Spaces Dug 401 | . . 29 . . . 7 16 58 5 23 38 27 7 28 . 16 14 16 . 1 5 6 9 10 19 13 8 9 37 Terrain Destroyed 747 | . . 29 6 . . 12 51 104 64 77 46 108 23 47 . 16 14 16 . 1 5 6 9 10 25 14 8 9 47 Melee 158 | . . . . . . . . 13 5 3 2 2 7 6 . 2 12 16 . 1 5 3 9 9 1 13 7 5 37 Projectile 82 | . . . . . . . 35 . 5 10 . 5 . 3 . . 2 . . . . 3 . 1 6 1 1 4 6 AOE 507 | . . 29 6 . . 12 16 91 54 64 44 101 16 38 . 14 . . . . . . . . 18 . . . 4 Terrain Rammed . | . . . . . . . . . . . . . . . . . . . . . . . . . . . . . . Walls Destroyed . | . . . . . . . . . . . . . . . . . . . . . . . . . . . . . . Machines Disabled . | . . . . . . . . . . . . . . . . . . . . . . . . . . . . . . Actions | -11 -10 -10 -9 -9 -9 -8 -8 -7 -7 -7 -7 -7 -6 -6 -6 -6 -5 -4 -4 -4 -4 -3 -3 -3 -3 -2 -2 -1 -1 --------- Run | Yrd Mat Min Mat Min Exi Min Mat Fac Low Low Zio Dee Pro Fac Was Fac Fac Fac Upp Upp War Pro Res Qua Sec Res Tes Acc Com Total 33047 | 82 733 507 1183 144 326 292 1927 2246 981 670 2172 1258 605 1506 568 1345 1424 2512 813 576 1704 1118 449 1504 890 2059 917 228 2308 Wait 3878 | . 145 48 47 . . 5 94 149 185 1 . 61 156 209 112 96 177 367 . 14 557 663 30 35 97 67 54 . 509 Move 26471 | 51 510 428 947 144 310 268 1586 1870 693 632 2069 1086 420 1170 428 1126 1165 1939 812 554 1030 443 383 1353 698 1847 742 209 1558 Hop 48 | . . . . . . . . 7 . . . . . . . 6 7 12 1 1 1 . 4 2 3 4 . . . Pick Up 286 | 7 15 14 26 . 4 . 22 18 6 3 23 10 1 19 2 13 10 14 . 1 10 . 2 6 7 23 9 1 20 Fast Attach 282 | 7 1 1 7 . . . 22 26 14 3 22 19 . 10 9 5 9 21 . . 25 . 6 13 11 20 15 . 16 Attach 188 | . 3 1 10 . 1 1 21 16 7 4 4 5 . 9 . 10 10 9 . . 5 2 1 7 16 9 . 4 33 Detach 76 | . . 1 . . . . 5 8 4 . 3 2 . 2 . 8 5 3 . . 4 2 . 3 11 3 . 3 9 Swap 201 | . 7 2 12 . 1 3 8 14 6 2 8 9 2 24 3 19 6 25 . 2 7 1 . 7 5 8 11 . 9 Drop 457 | . 10 7 31 . 6 . 50 39 15 3 28 22 . 19 12 15 10 30 . 1 40 . 7 20 8 36 25 . 23 Fire 483 | 17 42 5 103 . . 15 119 23 27 15 7 16 . 12 . 1 2 . . . . 1 . 3 17 8 1 5 44 Melee 528 | . . . . . 4 . . 37 16 7 8 18 26 32 2 46 23 73 . 3 11 6 16 25 17 32 42 6 78 Ram . | . . . . . . . . . . . . . . . . . . . . . . . . . . . . . . Kick . | . . . . . . . . . . . . . . . . . . . . . . . . . . . . . . Crush . | . . . . . . . . . . . . . . . . . . . . . . . . . . . . . . Escape Stasis 18 | . . . . . . . . . . . . . . . . . . . . . . . . 18 . . . . . Rewire 6 | . . . . . . . . . . . . . . . . . . . . . 6 . . . . . . . . Trap 76 | . . . . . . . . 39 8 . . 10 . . . . . 19 . . . . . . . . . . . Miscellaneous 49 | . . . . . . . . . . . . . . . . . . . . . 8 . . 12 . 2 18 . 9 Route ------- -11/Scrapyard -10/Materials (discovered 2 exits: *Mat / [*Min]) -10/Mines -9/Materials (discovered 2 exits: *Mat / [*Min]) -9/Mines (discovered 2 exits: *Mat / *Exi) -9/Exiles (discovered 2 exits: [*Min x2]) -8/Mines -8/Materials (discovered 3 exits: *Fac x3) -7/Factory (discovered 3 exits: *Fac / *Low x2) -7/Lower Caves -7/Lower Caves -7/Zion (discovered 2 exits: [*Dee] / [*Pro]) -7/Deep Caves -6/Proximity Caves -6/Factory (discovered 3 exits: Fac x2 / *Low) -6/Waste -6/Factory -5/Factory -4/Factory (discovered 3 exits: *Upp x2 / Arm) -4/Upper Caves -4/Upper Caves -4/Warlord -3/Proximity Caves -3/Research (discovered 2 exits: *Qua x2) -3/Quarantine (discovered 2 exits: *Res / *Sec) -3/Section 7 -2/Research (discovered 2 exits: *Acc / *Tes) -2/Testing -1/Access -1/Command History --------- Turn | Location | Event 27 | -11/Scrapyard | Discovered new exit (range 15) 117 | -11/Scrapyard | Entered Materials 266 | -10/Materials | Central database locked down 312 | -10/Materials | Build established: Mutant 323 | -10/Materials | Discovered new exit (range 16) 464 | -10/Materials | Discovered new exit (range 8) 1113 | -10/Materials | Entered Mines 1141 | -10/Mines | Met a Derelict bent on vengeance 1157 | -10/Mines | Learned Materials trap positions 1182 | -10/Mines | Found a hidden stash of uninstalled traps 1589 | -10/Mines | Joined a pair of Derelicts in attacking an 0b10 outpost 1723 | -10/Mines | Assisted by bots powering up and referring to "LRC-V3" 1782 | -10/Mines | Received a Rocket Launcher from a helpful Derelict 1930 | -10/Mines | Discovered new exit (range 9) 1964 | -10/Mines | Entered Materials 1964 | -9/Materials | Accompanied by 3 allies 1964 | -9/Materials | Evolved 2 slots: Propulsion x1, Utility x1 1965 | -9/Materials | Loaded intel: 14 trap records 2115 | -9/Materials | Lost 3 allies 2332 | -9/Materials | Lost 5 parts (1n2u2w) 2576 | -9/Materials | Build established: Scavenger-Mutant 3029 | -9/Materials | Discovered new exit (range 7) 3299 | -9/Materials | Discovered new exit (range 9) 3359 | -9/Materials | Build established: Mutant 4384 | -9/Materials | Entered Mines 4385 | -9/Mines | Learned location of Storage (-9) 4410 | -9/Mines | Discovered new exit (range 14) 4464 | -9/Mines | Deemed a non-threat by the Exiles lab entrance 4678 | -9/Mines | Discovered new exit (range 5) 4687 | -9/Mines | Entered Exiles 4726 | -9/Exiles | Discovered new exit (range 15) 4747 | -9/Exiles | Met 8R-AWN 4776 | -9/Exiles | Met EX-HEX 4888 | -9/Exiles | Met EX-DEC 4945 | -9/Exiles | Learned location of Zion (-7) 4984 | -9/Exiles | Met EX-BIN 5053 | -9/Exiles | Opened EX-Vault 5064 | -9/Exiles | Found Superbattery 5071 | -9/Exiles | Found YOLO Cannon 5080 | -9/Exiles | Found Cloak of Protection 5131 | -9/Exiles | Warned to stay clear of 0b10 Research branches 5300 | -9/Exiles | Discovered new exit (range 10) 5316 | -9/Exiles | Stole three prototypes: Superbattery, Cloak of Protection, YOLO Cannon 5316 | -9/Exiles | Entered Mines 5895 | -8/Mines | Discovered new exit (range 8) 5933 | -8/Mines | Entered Materials 5933 | -8/Materials | Evolved 2 slots: Propulsion x1, Utility x1 6138 | -8/Materials | Garrison activated, responded to threat 6252 | -8/Materials | Lost 4 parts (1p1n1u1w) 6260 | -8/Materials | Discovered new exit (range 16) 6529 | -8/Materials | Build established: Scavenger-Mutant 6706 | -8/Materials | Met 7R-MNS 7126 | -8/Materials | Discovered new exit (range 15) 7953 | -8/Materials | Build established: Mutant 8827 | -8/Materials | Discovered new exit (range 9) 10130 | -8/Materials | Entered Factory 10130 | -7/Factory | Evolved 2 slots: Power x1, Propulsion x1 10131 | -7/Factory | Caught up to 7R-MNS 10189 | -7/Factory | Discovered new exit (range 12) 10402 | -7/Factory | Discovered new exit (range 16) 10450 | -7/Factory | Discovered new exit (range 12) 10736 | -7/Factory | Identified exit to Lower Caves 10810 | -7/Factory | Build established: Trapper-Sprinter 10848 | -7/Factory | Fabricated S-27 Virus? 10921 | -7/Factory | Lost 3 allies 10985 | -7/Factory | Destroyed 8 combat bots 10987 | -7/Factory | Lost 8 parts (2p4n1u1w) 11159 | -7/Factory | Entered Lower Caves 11231 | -7/Lower Caves | Build established: Trapper-Mutant 11251 | -7/Lower Caves | Learned 8 Factory zone layouts 12042 | -7/Lower Caves | Discovered new exit (range 7) 12211 | -7/Lower Caves | Entered another Lower Caves area 12366 | -7/Lower Caves | Spotted B-75 Beast 12409 | -7/Lower Caves | Destroyed B-75 Beast 12501 | -7/Lower Caves | Lost 3 parts (1p2n) 12902 | -7/Lower Caves | Encountered a Warlord checkpoint 13050 | -7/Lower Caves | Learned Factory terminal intel 13218 | -7/Lower Caves | Discovered new exit (range 5) 13265 | -7/Lower Caves | Entered Zion 13317 | -7/Zion | Found CR-A16's Pointy Stick 13342 | -7/Zion | System corruption cleaned by Quarantine Array 13407 | -7/Zion | Discovered new exit (range 10) 13534 | -7/Zion | Received a visual enhancement algorithm 13604 | -7/Zion | Learned Factory terminal intel 13732 | -7/Zion | Learned location of Data Miner (-6) 13933 | -7/Zion | Learned location of Warlord (-4) 13953 | -7/Zion | Found Prototype Special Weapon 13954 | -7/Zion | Identified RU-N14's Throwing Claymores 13958 | -7/Zion | Found RU-N14's Throwing Claymores 13961 | -7/Zion | Found RU-N14's Throwing Claymores 14010 | -7/Zion | Learned Factory emergency access door positions 14030 | -7/Zion | Learned 12 Factory zone layouts 14921 | -7/Zion | Build established: Derelict-Mutant 15062 | -7/Zion | Crushed by falling debris 15062 | -7/Zion | Core integrity fell below 50% 15101 | -7/Zion | Discovered new exit (range 5) 15106 | -7/Zion | Lost 7 parts (4n2u1w) 15106 | -7/Zion | Saw the warning signs outside the Deep Caves entrance 15170 | -7/Zion | Found RU-N14's Throwing Claymores 15299 | -7/Zion | Build established: Trapper-Mutant 15766 | -7/Zion | Build established: Trapper-Gladiator 16063 | -7/Zion | Entered Deep Caves 16480 | -7/Deep Caves | Attacked by Z-Imprinter 16489 | -7/Deep Caves | Core integrity fell below 20% 16585 | -7/Deep Caves | Found Prototype Device 16585 | -7/Deep Caves | Identified Zio. Metafield Generator 16684 | -7/Deep Caves | Found Prototype Protection 16684 | -7/Deep Caves | Identified Zio. Weapon Casing 16813 | -7/Deep Caves | Build established: Derelict-Mutant 16894 | -7/Deep Caves | Discovered new exit (range 14) 16985 | -7/Deep Caves | Spotted AG-66436 17039 | -7/Deep Caves | Entered Proximity Caves 17107 | -6/Proximity Caves | Spotter reported a threat 17107 | -6/Proximity Caves | Spotter reported a threat 17174 | -6/Proximity Caves | Spotter reported a threat 17257 | -6/Proximity Caves | Spotter reported a threat 17388 | -6/Proximity Caves | Identified exit to Factory 17435 | -6/Proximity Caves | Spotter reported a threat 17436 | -6/Proximity Caves | Entered Factory 17436 | -6/Factory | Evolved 2 slots: Utility x2 17437 | -6/Factory | Identified exit to Lower Caves 17438 | -6/Factory | Identified exit to Factory 17440 | -6/Factory | Loaded intel: 26 terminal locations 17662 | -6/Factory | Repaired Broken Cmb. Airjet? 17786 | -6/Factory | Search patrols dispatched 17957 | -6/Factory | Repaired Cmb. Airjet 18127 | -6/Factory | Repaired Lrn. Missile Launcher 18136 | -6/Factory | Search patrols dispatched 18184 | -6/Factory | Sucked down chute 18184 | -6/Factory | Entered Waste 18187 | -6/Waste | Spotted C-40 Crusher 18187 | -6/Waste | Spotted C-40 Crusher 18189 | -6/Waste | Spotted C-40 Crusher 18201 | -6/Waste | Spotted C-40 Crusher 18203 | -6/Waste | Warlord forces began an assault 18224 | -6/Waste | Allies destroyed C-40 Crusher 18231 | -6/Waste | Allies destroyed C-40 Crusher 18245 | -6/Waste | Spotted C-40 Crusher 18247 | -6/Waste | Allies destroyed C-40 Crusher 18248 | -6/Waste | Spotted C-40 Crusher 18257 | -6/Waste | Allies destroyed C-40 Crusher 18262 | -6/Waste | Lost 5 allies 18265 | -6/Waste | Build established: Scavenger-Scout 18316 | -6/Waste | Allies destroyed C-40 Crusher 18347 | -6/Waste | Allies destroyed C-40 Crusher 18371 | -6/Waste | Lost 4 allies 18401 | -6/Waste | Discovered new exit (range 12) 18451 | -6/Waste | Identified exit to Factory 18462 | -6/Waste | Entered Factory 18462 | -6/Factory | Accompanied by 9 allies 18463 | -6/Factory | Loaded intel: 26 terminal locations 18563 | -6/Factory | Garrison activated, responded to threat 18611 | -6/Factory | Lost 3 allies 18685 | -6/Factory | Fabricated Cld. Cesium-ion Thruster? 18797 | -6/Factory | Lost 5 parts (1p1n1u2w) 18812 | -6/Factory | First assault squad dispatched 19083 | -6/Factory | Discovered exit to Factory (range 8) 19084 | -6/Factory | Entered another Factory area 19084 | -5/Factory | Evolved 2 slots: Propulsion x1, Utility x1 19205 | -5/Factory | Fabricated Diametric Drive? 19248 | -5/Factory | Fabricated Hacking Suite? 19289 | -5/Factory | Spotted B-75 Beast 19384 | -5/Factory | Search patrols dispatched 19463 | -5/Factory | Repaired Field Propulsion Array 19506 | -5/Factory | Build established: Hacker-Scout 19549 | -5/Factory | Repaired Cld. Cesium-ion Thruster 19684 | -5/Factory | Search patrols dispatched 19687 | -5/Factory | Discovered new exit (range 5) 19688 | -5/Factory | Identified exit to Factory 19698 | -5/Factory | Entered another Factory area 19698 | -4/Factory | Evolved 2 slots: Utility x2 19713 | -4/Factory | Identified exit to Upper Caves 19713 | -4/Factory | Identified exit to Armory 19767 | -4/Factory | Identified exit to DSF 19815 | -4/Factory | Repaired Diametric Drive 19964 | -4/Factory | Build established: Hacker-Ninja 19982 | -4/Factory | Fabricated Lrn. Sensor Array (x1) 20024 | -4/Factory | Fabricated Cld. Cesium-ion Thruster? 20194 | -4/Factory | Central database locked down 20239 | -4/Factory | Fabricated Adv. Transmission Jammer (x1) 20638 | -4/Factory | Build established: Hacker-Scout 20731 | -4/Factory | Cargo convoy interrupted 20877 | -4/Factory | Entered Upper Caves 20978 | -4/Upper Caves | Learned location of Quarantine (-3) 20992 | -4/Upper Caves | Discovered new exit (range 5) 20992 | -4/Upper Caves | Identified exit to Upper Caves 21047 | -4/Upper Caves | Build established: Scavenger-Ninja 21081 | -4/Upper Caves | Entered another Upper Caves area 21145 | -4/Upper Caves | Learned Research interactive machine intel 21213 | -4/Upper Caves | Discovered new exit (range 10) 21215 | -4/Upper Caves | Identified exit to Warlord 21219 | -4/Upper Caves | Found Alien Artifact 21247 | -4/Upper Caves | Entered Warlord 21254 | -4/Warlord | Discovered new exit (range 14) 21371 | -4/Warlord | Met Warlord 21396 | -4/Warlord | Warlord's base attacked by MAIN.C 21400 | -4/Warlord | Found Prototype Reactor 21400 | -4/Warlord | Identified Vortex Chain Reactor 21431 | -4/Warlord | Found Prototype Processor 21432 | -4/Warlord | Identified Exp. Target Analyzer 21460 | -4/Warlord | Found Prototype Energy Gun 21460 | -4/Warlord | Identified Vortex Rail 21463 | -4/Warlord | Found Prototype Energy Cannon 21463 | -4/Warlord | Identified Vortex Driver 21465 | -4/Warlord | Found Prototype Energy Gun 21465 | -4/Warlord | Identified Vortex Rifle 21468 | -4/Warlord | Found Vortex Driver 21469 | -4/Warlord | Identified Dimensional Node Initializer 21469 | -4/Warlord | Initialized slip node 21746 | -4/Warlord | Warlord forces counterattacked 21771 | -4/Warlord | Spotted Striker 21863 | -4/Warlord | Lost 11 allies 21944 | -4/Warlord | Spotted Striker 22014 | -4/Warlord | Spotted Executioner 22018 | -4/Warlord | Spotted Executioner 22071 | -4/Warlord | Warlord base infiltrated, sounded retreat 22197 | -4/Warlord | Spotted Striker 22204 | -4/Warlord | Spotted Striker 22226 | -4/Warlord | Identified exit to Proximity Caves 22227 | -4/Warlord | Entered Proximity Caves 22256 | -3/Proximity Caves | Lost 5 allies 23007 | -3/Proximity Caves | Discovered new exit (range 16) 23018 | -3/Proximity Caves | Identified exit to Research 23018 | -3/Proximity Caves | Entered Research 23018 | -3/Research | Evolved 2 slots: Utility x2 23019 | -3/Research | Loaded intel: 45 interactive machine locations 23087 | -3/Research | Identified exit to Quarantine 23184 | -3/Research | Spotted B-86 Titan 23197 | -3/Research | Entered Quarantine 23202 | -3/Quarantine | Found Alien Artifact 23202 | -3/Quarantine | Identified Phase Armor 23213 | -3/Quarantine | Found Alien Artifact 23250 | -3/Quarantine | Found Alien Slashing Weapon 23252 | -3/Quarantine | Identified Sigix Broadsword 23303 | -3/Quarantine | Identified exit to Research 23319 | -3/Quarantine | Cryocooling Duct disabled 23326 | -3/Quarantine | Found Alien Artifact 23326 | -3/Quarantine | Identified Phase Redirector 23334 | -3/Quarantine | Ambient heat levels rising (+20) 23334 | -3/Quarantine | Non-combat units ordered to evacuate 23334 | -3/Quarantine | Spotted Alpha 7 23342 | -3/Quarantine | Found Alien Energy Cannon 23342 | -3/Quarantine | Identified Core Cannon 23365 | -3/Quarantine | Build established: Hacker-Ninja 23408 | -3/Quarantine | Found Alien Impact Weapon 23408 | -3/Quarantine | Identified Core Stripper 23479 | -3/Quarantine | Found Alien Artifact 23569 | -3/Quarantine | Identified Core Reset Matrix 23641 | -3/Quarantine | Spotted Fortress 23650 | -3/Quarantine | Discovered new exit (range 5) 23651 | -3/Quarantine | Identified exit to Section 7 23652 | -3/Quarantine | Entered Section 7 23659 | -3/Section 7 | Found Alien Artifact 23659 | -3/Section 7 | Identified Integrated Mediator 23659 | -3/Section 7 | Installed Integrated Mediator, increased core attachment efficiency 23676 | -3/Section 7 | Spotted B-86 Titan 23710 | -3/Section 7 | Found Prototype Processor 23710 | -3/Section 7 | Identified Exp. Signal Interpreter 23723 | -3/Section 7 | Spotted S7 Guard 23773 | -3/Section 7 | Destroyed S7 Guard 23801 | -3/Section 7 | Found Alien Artifact 23816 | -3/Section 7 | Lost 8 parts (2p3n2u1w) 23843 | -3/Section 7 | Identified Core Physics Calibrator 23969 | -3/Section 7 | Spotted Alpha 7 23994 | -3/Section 7 | Entered Research 23994 | -2/Research | Warlord forces began assault on 0b10 23994 | -2/Research | Evolved 2 slots: Utility x2 23995 | -2/Research | Identified exit to Testing 24017 | -2/Research | Discovered new exit (range 11) 24018 | -2/Research | Identified exit to Access 24029 | -2/Research | Spotted B-90 Cyclops 24037 | -2/Research | Met up with Warlord 24104 | -2/Research | Fabricated Cld. Q-thruster? 24104 | -2/Research | Research machine network offline 24170 | -2/Research | Found Prototype Device 24170 | -2/Research | Identified Exp. Force Field 24185 | -2/Research | Found Prototype Launcher 24185 | -2/Research | Identified Tesla Bomb Launcher 24230 | -2/Research | Found Prototype Device 24230 | -2/Research | Identified Exp. Actuator Array 24246 | -2/Research | Found Exp. Actuator Array 24255 | -2/Research | Found Enh. Force Lance 24396 | -2/Research | Spotted Executioner 24396 | -2/Research | Spotted Executioner 24438 | -2/Research | Lost 3 allies 24489 | -2/Research | Found Enh. Force Lance 24619 | -2/Research | Borebot progress halted 24622 | -2/Research | Entered Testing 24715 | -2/Testing | Found Prototype Protection 24718 | -2/Testing | Found Prototype Protection 24718 | -2/Testing | Identified Hvy. Regenerative Plating 24727 | -2/Testing | Identified SHELL Armor 24773 | -2/Testing | Found Exp. Target Analyzer 24835 | -2/Testing | Found Prototype Slashing Weapon 24835 | -2/Testing | Identified Vibroblade 24861 | -2/Testing | Found Vibroblade 25017 | -2/Testing | Spotted Striker 25017 | -2/Testing | Spotted Striker 25029 | -2/Testing | Found Prototype Launcher 25042 | -2/Testing | System corruption reached 10% 25059 | -2/Testing | Entered Access 25059 | -1/Access | Evolved 2 slots: Utility x1, Weapon x1 25092 | -1/Access | Identified exit to Command 25110 | -1/Access | Identified Z-bomb Delivery System 25138 | -1/Access | Entered Command 25156 | -1/Command | Phase Generator disabled 25183 | -1/Command | Disengaged cave seal 25183 | -1/Command | Derelicts emerged from the dark tunnel 25183 | -1/Command | Welcomed Warlord to Command 25195 | -1/Command | Disengaged cave seal 25195 | -1/Command | Derelicts emerged from the dark tunnel 25332 | -1/Command | Lost 3 allies 25742 | -1/Command | Build established: Hacker-Scout 26025 | -1/Command | Spotted M Guard 26025 | -1/Command | Spotted M Guard 26025 | -1/Command | Spotted Combat Programmer 26025 | -1/Command | Spotted Combat Programmer 26052 | -1/Command | Combat Programmer assimilated allied CI-N5A(B) 26052 | -1/Command | Spotted CI-N5A(B) 26060 | -1/Command | System corruption reached 10% 26082 | -1/Command | Destroyed Combat Programmer 26085 | -1/Command | Lost 10 allies 26131 | -1/Command | Lost 14 parts (3p1n8u2w) 26136 | -1/Command | All MAIN.C guards destroyed 26325 | -1/Command | Build established: Hacker-Mutant 26341 | -1/Command | Identified Subatomic Replicator 26341 | -1/Command | Used Subatomic Replicator to replicate Z-bomb Delivery System 26634 | -1/Command | Warlord commented on Warlord statues 26761 | -1/Command | Met MAIN.C 26769 | -1/Command | Warlord shut down involuntarily 26795 | -1/Command | Destroyed MAIN.C Shell 26796 | -1/Command | 0b10 Conduit disabled 26798 | -1/Command | MAIN.C activated Command garrisons 26838 | -1/Command | Lost 4 parts (1n2u1w) 26884 | -1/Command | Core integrity fell below 50% 26894 | -1/Command | Core integrity fell below 20% 26902 | -1/Command | Destroyed by G-73 Enforcer with Phase Gun Last Messages --------------- 26883_ Cmb. Antigrav System destroyed. 26883_ Cmb. Gravmag System destroyed. 26884_ Knocked back. 26885_ Penetrated by Slug. 26885_ Adv. Weight Redist. System destroyed. 26887_ Adv. Matter Compressor destroyed. 26887_ Knocked back. 26889_ Slug penetrates MAIN.C. 26889_ Slug penetrates P-80 Master. 26889_ P-80 Master suffers critical hit (Destroy). 26889_ P-80 Master destroyed. 26892_ Penetrated by Slug. 26893_ Dropped Hcp. Storage Unit. 26894_ Knocked back. 26895_ Slug penetrates 0b10 Conduit. 26896_ G:MQQSUW&RHDK ZM:EEK:3 26897_ Slug penetrates 0b10 Conduit. 26898_ Penetrated by Slug. 26898_ Exp. Gyrokinetic Inverter destroyed. Map ----- +----------------------------------------------------+ | ?????????????????????????????????????????????????? | | ?????????????????????????????????????????????????? | | ?????????????????????????????????????????????????? | | ?????????????????????????????????????????????????? | | ?????????????????????????????????????????????????? | | ?????????????????????????????????????????????????? | | ?????????????????????#######################?????? | | ?????????????????????#"""" #?????? | | ?????????????????????#" %%#?????? | | ?????????????????????#""""" % % % ####### | | ?????????????????????#""""""" "% % " | | ?????????????????????# % % [% + | | ?????????????????????# =!=%% % " " | | ?????????????????????# %%%%h% ####### | | ?????????????????????# % |%% b #?????? | | ?????????????????????# % %M !!% %%%% #?????? | | ?????????????????????# % g h ""#?????? | | ????????????????????##!* g" """""""#?????? | | ???????????????????##;* g """""""""#?????? | | ???????????????????# # g """"""""""??????? | | ???????????????????#% " " " ??????????? | | ???????????????????## " " "????????????? | | ????????????????????"" " " "?"????????????? | | ?????????????????????" " " " "??????????????? | | ?????????????????????" " " "??????????????? | | ?????????????????????# @""""""""???????????????? | | ?????????????????????# """ " ???????????????? | | ?????????????????????# """ " ???????????????? | | ?????????????????????#############???????????????? | | ?????????????????????????????????????????????????? | | ?????????????????????????????????????????????????? | | ?????????????????????????????????????????????????? | | ?????????????????????????????????????????????????? | | ?????????????????????????????????????????????????? | | ?????????????????????????????????????????????????? | | ?????????????????????????????????????????????????? | | ?????????????????????????????????????????????????? | | ?????????????????????????????????????????????????? | | ?????????????????????????????????????????????????? | | ?????????????????????????????????????????????????? | | ?????????????????????????????????????????????????? | | ?????????????????????????????????????????????????? | | ?????????????????????????????????????????????????? | | ?????????????????????????????????????????????????? | | ?????????????????????????????????????????????????? | | ?????????????????????????????????????????????????? | | ?????????????????????????????????????????????????? | | ?????????????????????????????????????????????????? | | ?????????????????????????????????????????????????? | | ?????????????????????????????????????????????????? | +----------------------------------------------------+ Best States ------------- Heat Dissipation 90 Coolant Potential 120 Energy Generation 80 Energy Capacity 1765 Matter Stores 780 Matter Capacity 800 Sight Range 20 Robot Scan Range 18 Terrain Scan Range 24 Terrain Scan Density 10 Jamming Range 16 Cloak Strength 5 Power Amplification 40 Additional Mass Support 9 Armor Coverage 1800 Resistance: KI 20 Resistance: TH 20 Resistance: EX 50 Core Shielding 30 Utility Shielding 66 Point Defense Rating 80 Weapon Cycling 15 Melee Speed Boost 40 Phase Shifting 5 Evasion (%) 79 Melee Accuracy 6 Target Analysis 8 Recoil Reduction 4 Salvage Targeting 1 Offensive Hacking 43 Defensive Hacking 10 Authchip Count 4 Trap Extractor Capacity 6 Item Schematics ----------------- Lrg. Storage Unit | -8/Materials | Scanalyzed Transport Network Coupler | -8/Materials | Scanalyzed Hacking Suite | -8/Materials | Scanalyzed Adv. Weight Redist. System | -8/Materials | Scanalyzed Transmission Jammer | -8/Materials | Scanalyzed Graphene Brace | -8/Materials | Scanalyzed Surge Thruster | -8/Materials | Hacked ECM Suite | -8/Materials | Hacked Cesium-ion Thruster | -8/Materials | Scanalyzed Cld. Pulse Rifle | -8/Materials | Scanalyzed Imp. Signal Interpreter | -8/Materials | Scanalyzed Power Maul | -8/Materials | Scanalyzed Machine Analyzer | -8/Materials | Scanalyzed Greatsword | -7/Factory | Hacked Imp. Trap Extractor | -7/Factory | Hacked Exp. Targeting Computer | -7/Factory | Hacked Mak. Salvage Targeting Computer | -7/Zion | Archive 0b10 Decoder Chip [Looter] | -7/Zion | Archive Imp. Deuterium Engine | -7/Zion | Archive EM Disruption Field | -7/Zion | Archive Med. Treads | -7/Zion | Archive Hvy. Pick | -7/Zion | Archive Remote Datajack | -7/Zion | Archive Imp. Launcher Guidance Computer | -7/Zion | Archive Lyr. Heavy Armor Plating | -7/Zion | Archive Mak. Sword | -7/Zion | Archive Mak. Transmission Jammer | -7/Zion | Archive Beamcaster | -7/Zion | Archive Mak. Flight Unit | -7/Zion | Archive Proton Missile Launcher | -7/Zion | Archive Fusion Compressor | -7/Zion | Archive Tiamat Missile Launcher | -7/Zion | Archive Exp. Reaction Control System | -6/Factory | Scanalyzed Cmb. Airjet | -6/Factory | Scanalyzed Cld. Cesium-ion Thruster | -6/Factory | Scanalyzed Diametric Drive | -6/Factory | Scanalyzed Lrn. Sensor Array | -4/Factory | Hacked Cld. Q-thruster | -3/Section 7 | Hacked Med. Regenerative Plating | -2/Testing | Hacked Lgt. Regenerative Plating | -2/Testing | Hacked Cmb. Linear Gravjet | -2/Testing | Scanalyzed Centrium Medium Armor Plating | -2/Testing | Scanalyzed Robot Schematics ------------------ G-47 Trooper | -7/Zion | Archive T-07 Excavator | -7/Zion | Archive Fabricated ------------ S-27 Virus | x4 | -7/Factory | Preloaded Cld. Cesium-ion Thruster | x1 | -6/Factory | Authchip Diametric Drive | x1 | -5/Factory | Authchip Hacking Suite | x1 | -5/Factory | Authchip Lrn. Sensor Array | x1 | -4/Factory | Authchip Cld. Cesium-ion Thruster | x1 | -4/Factory | Authchip Adv. Transmission Jammer | x1 | -4/Factory | Preloaded Alien Tech Used ----------------- Dimensional Node Initializer Phase Armor Sigix Broadsword Phase Redirector Core Cannon Core Stripper Integrated Mediator Core Physics Calibrator Subatomic Replicator Achievements -------------- None Challenges ------------ None Game ------ Seed DeliveryCommTerrabomb Manual? 1 Play Time 09:09:45 Cumulative 457.1 hours Start 2024.07.09 @ 23:11:52 End 2024.07.12 @ 18:25:03 Sessions 9 Manual Loads 0 Difficulty Rogue Special Mode None Game No. 174 Rogue 171 Adventurer 3 Explorer 0 Win Type - Total 7 Types 4/1/0/1/0/1/0/0/0 Lore% 83 Gallery% 89 Achievement% 86 Wizard Run 0 Options --------- Layout 2 ASCII 0 Keyboard 0 Movement Numpad Keybinds 0 Fullscreen 2 Font 24/Smallcaps Map View 50x44 Zoom Use 0% Tactical HUD 1 Map Filters NONE Filters NONE Steam 1 RUN: f898bb38-6dee-4f3c-8cc0-c21970888512